fUSD/lending_fUSD_20260207
["ID","MTS","AMOUNT","RATE_DAILY","PERIOD"]
[404747342,1770507040214,-151.0,0.00011799,2]
[404747343,1770507040224,-151.0,0.00011799,2]
[404747344,1770507040234,-151.0,0.00011799,2]
[404747345,1770507040243,-151.0,0.00011799,2]
[404747346,1770507040252,-151.0,0.00011799,2]
[404747347,1770507040262,-151.0,0.00011799,2]
[404747348,1770507040271,-151.0,0.00011799,2]
[404747349,1770507040282,-151.0,0.00011799,2]
[404747350,1770507040294,-151.0,0.00011799,2]
[404747351,1770507040304,-151.0,0.00011799,2]
[404747352,1770507040313,-151.0,0.00011799,2]
[404747353,1770507040323,-151.0,0.00011799,2]
[404747354,1770507040332,-151.0,0.00011799,2]
[404747355,1770507040343,-151.0,0.00011799,2]
[404747356,1770507040353,-151.0,0.00011799,2]
[404747357,1770507040363,-151.0,0.00011799,2]
[404747358,1770507040372,-151.0,0.00011799,2]
[404747359,1770507040381,-151.0,0.00011799,2]
[404747360,1770507040390,-151.0,0.00011799,2]
[404747361,1770507040399,-151.0,0.00011799,2]
[404747362,1770507040408,-151.0,0.00011799,2]
[404747363,1770507040418,-151.0,0.00011799,2]
[404747364,1770507040427,-151.0,0.00011799,2]
[404747365,1770507040437,-151.0,0.00011799,2]
[404747366,1770507040446,-151.0,0.00011799,2]
[404747367,1770507040458,-181.94680942,0.00011799,2]
[404747368,1770507040467,-151.0,0.00011799,2]
[404747369,1770507040477,-151.0,0.00011799,2]
[404747370,1770507040486,-151.0,0.00011799,2]
[404747371,1770507040495,-151.0,0.00011799,2]
[404747372,1770507040504,-151.0,0.00011799,2]
[404747373,1770507040516,-151.0,0.00011799,2]
[404747374,1770507040525,-151.0,0.00011799,2]
[404747375,1770507040536,-151.0,0.00011799,2]
[404747376,1770507040545,-151.0,0.00011799,2]
[404747377,1770507040555,-170.066089,0.00011806,2]
[404747378,1770507040564,-153.086108,0.00011806,2]
[404747379,1770507040573,-151.0,0.00011806,2]
[404747380,1770507040583,-151.0,0.00011806,2]
[404747381,1770507040594,-248.616892,0.00011806,2]
[404747382,1770507040603,-248.616892,0.00011806,2]
[404747383,1770507040613,-248.616892,0.00011806,2]
[404747384,1770507040622,-248.616892,0.00011806,2]
[404747385,1770507040632,-366.361971,0.00011806,2]
[404747386,1770507040641,-366.361971,0.00011806,2]
[404747387,1770507040651,-366.361971,0.00011806,2]
[404747388,1770507040661,-366.361971,0.00011806,2]
[404747389,1770507040671,-33304.9777,0.00011806,2]
[404747390,1770507040681,-390.74,0.00011899,2]
[404747391,1770507040691,-200.0,0.00011905,2]
[404747392,1770507040700,-1000.0,0.00012028,2]
[404747393,1770507040710,-152.92,0.00012171,2]
[404747394,1770507040719,-390.74,0.00012173,2]
[404747395,1770507040728,-500.0,0.00012192,2]
[404747396,1770507040737,-444.0,0.00012194,2]
[404747397,1770507040746,-762.98981392,0.00012217,2]
[404747398,1770507040755,-513.95291761,0.00012264,2]
[404747399,1770507040765,-250.0,0.00012264,2]
[404747400,1770507040774,-300.0,0.00012264,2]
[404747401,1770507040784,-300.0,0.00012264,2]
[404747402,1770507040793,-500.0,0.00012264,2]
[404747403,1770507040803,-195.0,0.00012264,2]
[404747404,1770507040812,-250.0,0.00012264,2]
[404747405,1770507040821,-287.61899177,0.00012291,2]
[404747406,1770507040831,-250.0,0.00012306,2]
[404747407,1770507040841,-300.0,0.00012327,2]
[404747408,1770507040850,-362.4043,0.00012327,2]
[404747409,1770507040860,-193.0,0.00012328,2]
[404747410,1770507040869,-422.0,0.00012356,2]
[404747411,1770507040878,-390.74,0.00012447,2]
[404747412,1770507040887,-155.787,0.0001254,2]
[404747413,1770507040897,-500.0,0.00012548,2]
[404747414,1770507040908,-1157.68379201,0.00012599,2]
[404747415,1770507040917,-5630.34,0.00012621,2]
[404747416,1770507040927,-5630.34,0.00012644,2]
[404747417,1770507040937,-5630.34,0.00012667,2]
[404747418,1770507040947,-5630.34,0.00012689,2]
[404747419,1770507040957,-390.74,0.00012721,2]
[404747420,1770507040966,-298.26089446,0.00012839,2]
[404747421,1770507040975,-152.92,0.00012887,2]
[404747422,1770507040985,-8472.56,0.00012893,2]
[404747423,1770507040996,-299.99,0.00012893,2]
[404747424,1770507041005,-405.24,0.00012893,2]
[404747425,1770507041015,-9999.99,0.00012893,2]
[404747426,1770507041024,-150.99,0.00012893,2]
[404747428,1770507041033,-999.99,0.00012893,2]
[404747430,1770507041043,-9999.99,0.00012893,2]
[404747433,1770507041053,-298.66,0.00012893,2]
[404747435,1770507041063,-150.99,0.00012893,2]
[404747437,1770507041072,-151.0,0.00012893,2]
[404747439,1770507041081,-151.0,0.00012893,2]
[404747440,1770507041091,-248.616892,0.00012893,2]
[404747442,1770507041101,-248.616892,0.00012893,2]
[404747444,1770507041110,-248.616892,0.00012893,2]
[404747446,1770507041119,-248.616892,0.00012893,2]
[404747448,1770507041128,-366.361971,0.00012893,2]
[404747449,1770507041137,-366.361971,0.00012893,2]
[404747451,1770507041146,-366.361971,0.00012893,2]
[404747453,1770507041155,-366.361971,0.00012893,2]
[404747454,1770507041166,-390.78781305,0.00012995,2]
[404747455,1770507041176,-500.0,0.00013096,2]
[404747456,1770507041186,-3026.5424827,0.00013104,2]
[404747457,1770507041196,-500.0,0.00013205,2]
[404747458,1770507041206,-405.43,0.00013217,2]
[404747459,1770507041217,-15648.9338168,0.00013297,2]
[404747460,1770507041226,-309.29654756,0.00013387,2]
[404747461,1770507041236,-3240.0,0.00013425,2]
[404747462,1770507041245,-1000.0,0.00013532,2]
[404747463,1770507041255,-152.92,0.00013603,2]
[404747464,1770507041266,-500.0,0.00013698,2]
[404747465,1770507041275,-500.0,0.00013698,2]
[404747466,1770507041285,-240.7693044,0.00013698,2]
[404747467,1770507041295,-500.0,0.00013698,2]
[404747468,1770507041305,-500.0,0.00013698,2]
[404747469,1770507041314,-500.0,0.00013698,2]
[404747470,1770507041324,-500.0,0.00013698,2]
[404747471,1770507041334,-242.8509997,0.00013698,2]
[404747472,1770507041344,-500.0,0.00013698,2]
[404747473,1770507041354,-500.0,0.00013698,2]
[404747474,1770507041364,-151.0,0.00013698,2]
[404747475,1770507041373,-165.270677,0.00013698,2]
[404747476,1770507041382,-151.0,0.00013698,2]
[404747477,1770507041392,-151.0,0.00013698,2]
[404747478,1770507041401,-589.15994815,0.00013698,2]
[404747479,1770507041411,-500.0,0.00013698,2]
[404747480,1770507041420,-500.0,0.00013698,2]
[404747481,1770507041430,-500.0,0.00013698,2]
[404747482,1770507041439,-500.0,0.00013698,2]
[404747483,1770507041449,-500.0,0.00013698,2]
[404747484,1770507041458,-500.0,0.00013698,2]
[404747485,1770507041467,-500.0,0.00013698,2]
[404747486,1770507041477,-151.0,0.00013698,2]
[404747487,1770507041486,-151.0,0.00013698,2]
[404747488,1770507041495,-248.616892,0.00013698,2]
[404747489,1770507041506,-248.616892,0.00013698,2]
[404747490,1770507041516,-248.616892,0.00013698,2]
[404747491,1770507041525,-248.616892,0.00013698,2]
[404747492,1770507041534,-500.0,0.00013698,2]
[404747493,1770507041542,-500.0,0.00013698,2]
[404747494,1770507041551,-500.0,0.00013698,2]
[404747495,1770507041560,-500.0,0.00013698,2]
[404747496,1770507041569,-500.0,0.00013698,2]
[404747497,1770507041577,-500.0,0.00013698,2]
[404747498,1770507041586,-500.0,0.00013698,2]
[404747499,1770507041596,-500.0,0.00013698,2]
[404747500,1770507041606,-500.0,0.00013698,2]
[404747501,1770507041615,-500.0,0.00013698,2]
[404747502,1770507041625,-500.0,0.00013698,2]
[404747503,1770507041635,-500.0,0.00013698,2]
[404747504,1770507041644,-500.0,0.00013698,2]
[404747505,1770507041654,-500.0,0.00013698,2]
[404747506,1770507041663,-500.0,0.00013698,2]
[404747507,1770507041672,-500.0,0.00013698,2]
[404747508,1770507041682,-375.68,0.00013698,2]
[404747509,1770507041691,-366.361971,0.00013698,2]
[404747510,1770507041701,-366.361971,0.00013698,2]
[404747511,1770507041710,-366.361971,0.00013698,2]
[404747512,1770507041720,-366.361971,0.00013698,2]
[404747513,1770507041730,-1826.88,0.00013699,2]
[404747514,1770507041739,-200.0,0.00013699,2]
[404747515,1770507041749,-151.0,0.00013699,2]
[404747516,1770507041758,-151.0,0.00013699,2]
[404747517,1770507041768,-151.0,0.00013699,2]
[404747518,1770507041778,-151.0,0.00013699,2]
[404747519,1770507041787,-151.0,0.00013699,2]
[404747520,1770507041797,-151.0,0.00013699,2]
[404747521,1770507041806,-241.907631,0.00013699,2]
[404747522,1770507041816,-151.0,0.000137,2]
[404747523,1770507041826,-151.0,0.000137,2]
[404747524,1770507041835,-151.0,0.000137,2]
[404747525,1770507041844,-16502.78,0.000137,2]
[404747526,1770507041854,-16502.78,0.000137,2]
[404747527,1770507041863,-155.0,0.00013794,2]
[404747528,1770507041872,-151.0,0.00013804,2]
[404747529,1770507041881,-248.616892,0.00013804,2]
[404747530,1770507041890,-248.616892,0.00013804,2]
[404747531,1770507041900,-248.616892,0.00013804,2]
[404747532,1770507041909,-248.616884,0.00013804,2]
[404747533,1770507041918,-366.361971,0.00013804,2]
[404747534,1770507041928,-366.361971,0.00013804,2]
[404747535,1770507041938,-366.361971,0.00013804,2]
[404747536,1770507041947,-366.361963,0.00013804,2]
[404747537,1770507041963,-45970.0282095,0.00013804,2]
[404747538,1770507041973,-250433.7808685,0.00013883,2]
[404747539,1770507041984,-9984.5793064,0.00013883,2]
[404747540,1770507041994,-200.0,0.0001393,2]
[404747541,1770507042005,-320.74051982,0.00013935,2]
[404747542,1770507042016,-151.0,0.00014042,2]
[404747543,1770507042025,-151.0,0.00014042,2]
[404747544,1770507042036,-402.0,0.00014219,2]
[404747545,1770507042046,-10257.2997564,0.00014278,2]
[404747546,1770507042056,-152.92,0.00014319,2]
[404747547,1770507042066,-55879.3296317,0.00014359,2]
[404747548,1770507042077,-2227.8607796,0.00014359,2]
[404747549,1770507042088,-1826.88,0.00014384,2]
[404747550,1770507042098,-3026.5424827,0.00014459,2]
[404747551,1770507042108,-332.60791905,0.00014483,2]
[404747552,1770507042118,-10680.0,0.00014644,2]
[404747553,1770507042128,-500.0,0.00014684,2]
[404747554,1770507042137,-500.0,0.00014684,2]
[404747555,1770507042147,-500.0,0.00014684,2]
[404747556,1770507042156,-500.0,0.00014684,2]
[404747557,1770507042166,-500.0,0.00014684,2]
[404747558,1770507042175,-405.43,0.00014686,2]
[404747559,1770507042184,-15648.9338168,0.00014843,2]
[404747560,1770507042194,-155.26244674,0.000149,2]
[404747561,1770507042204,-155.26244673,0.000149,2]
[404747562,1770507042213,-155.26244673,0.000149,2]
[404747563,1770507042223,-1823.33457415,0.0001494,2]
[404747564,1770507042232,-344.91441206,0.00015031,2]
[404747565,1770507042242,-152.92,0.00015034,2]
[404747566,1770507042252,-1000.0,0.00015035,2]
[404747567,1770507042262,-155.0,0.00015048,2]
[404747568,1770507042272,-1826.88,0.00015068,2]
[404747569,1770507042283,-151.0,0.00015068,2]
[404747570,1770507042294,-151.0,0.00015068,2]
[404747571,1770507042303,-151.0,0.00015068,2]
[404747572,1770507042312,-151.0,0.00015068,2]
[404747573,1770507042323,-151.0,0.00015068,2]
[404747574,1770507042332,-151.0,0.00015068,2]
[404747575,1770507042342,-151.0,0.00015068,2]
[404747576,1770507042351,-151.0,0.00015068,2]
[404747577,1770507042363,-151.0,0.00015068,2]
[404747578,1770507042372,-177.233088,0.00015068,2]
[404747579,1770507042381,-3174.53686387,0.00015253,2]
[404747580,1770507042391,-500.0,0.00015367,2]
[404747581,1770507042400,-500.0,0.00015367,2]
[404747582,1770507042409,-500.0,0.00015367,2]
[404747583,1770507042418,-500.0,0.00015367,2]
[404747584,1770507042428,-500.0,0.00015367,2]
[404747585,1770507042437,-151.0,0.00015368,2]
[404747586,1770507042446,-258.50232116,0.00015373,2]
[404747587,1770507042456,-500.0,0.00015373,2]
[404747588,1770507042465,-357.6762453,0.00015579,2]
[404747589,1770507042474,-152.92,0.0001575,2]
[404747590,1770507042483,-151.0,0.00015753,2]
[404747591,1770507042492,-1826.88,0.00015753,2]
[404747592,1770507042501,-3026.5424827,0.00015813,2]
[404747593,1770507042510,-687.69562898,0.00015921,2]
[404747594,1770507042520,-7082.98,0.00016073,2]
[404747595,1770507042529,-370.91026638,0.00016127,2]
[404747596,1770507042538,-405.43,0.00016154,2]
[404747597,1770507042548,-5000.0,0.000162,5]
[404747598,1770507042557,-312.94399393,0.00016282,2]
[404747599,1770507042566,-15648.9338168,0.0001639,2]
[404747600,1770507042575,-1826.88,0.00016438,2]
[404747601,1770507042585,-300.0,0.00016438,3]
[404747602,1770507042595,-300.0,0.00016438,3]
[404747603,1770507042605,-300.0,0.00016438,3]
[404747604,1770507042614,-300.0,0.00016438,3]
[404747605,1770507042623,-300.0,0.00016438,3]
[404747606,1770507042632,-151.0,0.00016438,2]
[404747607,1770507042641,-152.92,0.00016466,2]
[404747608,1770507042651,-1000.0,0.00016539,2]
[404747609,1770507042661,-361.03559738,0.000166,2]
[404747610,1770507042670,-384.63394623,0.00016675,2]
[404747611,1770507042680,-129094.24577936,0.00017,2]
[404747612,1770507042690,-152.92,0.00017182,2]
[404747613,1770507042699,-398.86540225,0.00017223,2]
[404747614,1770507042708,-155.0,0.00017556,2]
[404747615,1770507042717,-405.43,0.00017623,2]
[404747616,1770507042727,-160.0,0.00017636,2]
[404747617,1770507042736,-204.32982222,0.00017708,2]
[404747618,1770507042746,-151.0,0.00017808,2]
[404747619,1770507042755,-1164.2314276,0.00017808,2]
[404747620,1770507042764,-1164.2314276,0.00017808,2]
[404747621,1770507042773,-1164.2314276,0.00017808,2]
[404747622,1770507042783,-1164.2314276,0.00017808,2]
[404747623,1770507042791,-1164.2314276,0.00017808,2]
[404747624,1770507042800,-1164.2314276,0.00017808,2]
[404747625,1770507042809,-1164.2314276,0.00017808,2]
[404747626,1770507042818,-1164.2314276,0.00017808,2]
[404747627,1770507042828,-1164.2314276,0.00017808,2]
[404747628,1770507042837,-1164.2314276,0.00017808,2]
[404747629,1770507042847,-1164.2314276,0.00017808,2]
[404747630,1770507042856,-1164.2314276,0.00017808,2]
[404747631,1770507042865,-1164.2314276,0.00017808,2]
[404747632,1770507042874,-1164.2314276,0.00017808,2]
[404747633,1770507042884,-1164.2314276,0.00017808,2]
[404747634,1770507042893,-1164.2314276,0.00017808,2]
[404747635,1770507042902,-1164.2314276,0.00017808,2]
[404747636,1770507042911,-1164.2314276,0.00017808,2]
[404747637,1770507042920,-1164.2314276,0.00017808,2]
[404747638,1770507043107,-1164.2314276,0.00017808,2]
[404747639,1770507043117,-1164.2314276,0.00017808,2]
[404747640,1770507043127,-1164.2314276,0.00017808,2]
[404747641,1770507043136,-1164.2314276,0.00017808,2]
[404747642,1770507043146,-1164.2314276,0.00017808,2]
[404747643,1770507043155,-1164.2314276,0.00017808,2]
[404747644,1770507043165,-1164.2314276,0.00017808,2]
[404747645,1770507043175,-1164.2314276,0.00017808,2]
[404747646,1770507043184,-1164.2314276,0.00017808,2]
[404747647,1770507043194,-1164.2314276,0.00017808,2]
[404747648,1770507043203,-1164.2314276,0.00017808,2]
[404747649,1770507043212,-1164.2314276,0.00017808,2]
[404747650,1770507043222,-1164.2314276,0.00017808,2]
[404747651,1770507043232,-1164.2314276,0.00017808,2]
[404747652,1770507043246,-1164.2314276,0.00017808,2]
[404747653,1770507043256,-1164.2314276,0.00017808,2]
[404747654,1770507043264,-1164.2314276,0.00017808,2]
[404747655,1770507043273,-1164.2314276,0.00017808,2]
[404747656,1770507043286,-1164.2314276,0.00017808,2]
[404747657,1770507043294,-1164.2314276,0.00017808,2]
[404747658,1770507043303,-1164.2314276,0.00017808,2]
[404747659,1770507043312,-1164.2314276,0.00017808,2]
[404747660,1770507043323,-1164.2314276,0.00017808,2]
[404747661,1770507043332,-1164.2314276,0.00017808,2]
[404747662,1770507043341,-1164.2314276,0.00017808,2]
[404747663,1770507043352,-1164.2314276,0.00017808,2]
[404747664,1770507043361,-1164.2314276,0.00017808,2]
[404747665,1770507043369,-1164.2314276,0.00017808,2]
[404747666,1770507043378,-1164.2314276,0.00017808,2]
[404747667,1770507043387,-1164.2314276,0.00017808,2]
[404747668,1770507043396,-1164.2314276,0.00017808,2]
[404747669,1770507043405,-1164.2314276,0.00017808,2]
[404747670,1770507043414,-1164.2314276,0.00017808,2]
[404747671,1770507043423,-1164.2314276,0.00017808,2]
[404747672,1770507043432,-1164.23142761,0.00017808,2]
[404747673,1770507043441,-1164.23142761,0.00017808,2]
[404747674,1770507043450,-1164.23142761,0.00017808,2]
[404747675,1770507043459,-1164.23142761,0.00017808,2]
[404747676,1770507043468,-1164.23142761,0.00017808,2]
[404747677,1770507043477,-1164.23142761,0.00017808,2]
[404747678,1770507043487,-1164.23142761,0.00017808,2]
[404747679,1770507043495,-1164.23142761,0.00017808,2]
[404747680,1770507043504,-1164.23142761,0.00017808,2]
[404747681,1770507043514,-1164.23142761,0.00017808,2]
[404747682,1770507043524,-1164.23142761,0.00017808,2]
[404747683,1770507043533,-1164.23142761,0.00017808,2]
[404747684,1770507043542,-1164.23142761,0.00017808,2]
[404747685,1770507043551,-1164.23142761,0.00017808,2]
[404747686,1770507043561,-1164.23142761,0.00017808,2]
[404747687,1770507043570,-1164.23142761,0.00017808,2]
[404747688,1770507043579,-1164.23142761,0.00017808,2]
[404747689,1770507043588,-1164.23142761,0.00017808,2]
[404747690,1770507043598,-1164.23142761,0.00017808,2]
[404747691,1770507043607,-1164.23142761,0.00017808,2]
[404747692,1770507043617,-1164.23142761,0.00017808,2]
[404747693,1770507043627,-1164.23142761,0.00017808,2]
[404747694,1770507043636,-1164.23142761,0.00017808,2]
[404747695,1770507043645,-1164.23142761,0.00017808,2]
[404747696,1770507043655,-1164.23142761,0.00017808,2]
[404747697,1770507043664,-1164.23142761,0.00017808,2]
[404747698,1770507043673,-1164.23142761,0.00017808,2]
[404747699,1770507043682,-1164.23142761,0.00017808,2]
[404747700,1770507043692,-1164.23142761,0.00017808,2]
[404747701,1770507043701,-1164.23142759,0.00017808,2]
[404747702,1770507043710,-1164.23142759,0.00017808,2]
[404747703,1770507043719,-1164.23142759,0.00017808,2]
[404747704,1770507043729,-1164.23142759,0.00017808,2]
[404747705,1770507043738,-1164.23142759,0.00017808,2]
[404747706,1770507043747,-1164.23142759,0.00017808,2]
[404747707,1770507043757,-1164.23142757,0.00017808,2]
[404747708,1770507043766,-1000.0,0.00018042,2]
[404747709,1770507043776,-1823.33457415,0.00018582,2]
[404747710,1770507043785,-3174.53686387,0.00018855,2]
[404747711,1770507043795,-3835.0,0.00019,2]
[404747712,1770507043805,-20153.5,0.00019178,2]
[404747713,1770507043815,-151.0,0.00019178,2]
[404747714,1770507043826,-151.0,0.00019178,2]
[404747715,1770507043836,-1028.099902,0.00019178,2]
[404747716,1770507043848,-1028.099902,0.00019178,2]
[404747717,1770507043857,-1028.099902,0.00019178,2]
[404747718,1770507043867,-1028.099902,0.00019178,2]
[404747719,1770507043876,-1028.099902,0.00019178,2]
[404747720,1770507043885,-1028.099902,0.00019178,2]
[404747721,1770507043895,-1028.099902,0.00019178,2]
[404747722,1770507043904,-1028.099902,0.00019178,2]
[404747723,1770507043916,-1028.099902,0.00019178,2]
[404747724,1770507043928,-1028.099902,0.00019178,2]
[404747725,1770507043939,-1028.099902,0.00019178,2]
[404747726,1770507043949,-1028.099902,0.00019178,2]
[404747727,1770507043958,-1028.099902,0.00019178,2]
[404747728,1770507043969,-1028.099902,0.00019178,2]
[404747729,1770507043980,-1028.099902,0.00019178,2]
[404747730,1770507043992,-1028.099902,0.00019178,2]
[404747731,1770507044002,-1028.099902,0.00019178,2]
[404747732,1770507044011,-1028.099902,0.00019178,2]
[404747733,1770507044023,-1028.099902,0.00019178,2]
[404747734,1770507044034,-1028.099898,0.00019178,2]
[404747735,1770507044045,-251.93847808,0.00019747,2]
[404747736,1770507044056,-2000.0,0.000204,2]
[404747737,1770507044066,-3000.74192184,0.00020726,2]
[404747738,1770507044076,-445.0,0.00020826,2]
[404747739,1770507044086,-312.94399393,0.00020914,2]
[404747740,1770507044095,-446.0,0.00021036,2]
[404747741,1770507044105,-445.0,0.00021427,2]
[404747742,1770507044114,-19390.65,0.0002143,2]
[404747743,1770507044124,-5000.0,0.00021918,2]
[404747744,1770507044136,-151.0,0.00021918,2]
[404747745,1770507044147,-151.0,0.00021918,2]
[404747746,1770507044158,-214.295266,0.00021918,2]
[404747747,1770507044167,-151.0,0.00021918,2]
[404747748,1770507044176,-151.0,0.00021918,2]
[404747749,1770507044187,-151.0,0.00021918,2]
[404747750,1770507044197,-500.0,0.00021918,2]
[404747751,1770507044207,-500.0,0.00021918,2]
[404747752,1770507044219,-500.0,0.00021918,2]
[404747753,1770507044228,-181.64368778,0.00021918,2]
[404747754,1770507044238,-500.0,0.00021918,2]
[404747755,1770507044247,-500.0,0.00021918,2]
[404747756,1770507044256,-500.0,0.00021918,2]
[404747757,1770507044266,-382.85,0.00022,7]
[404747758,1770507044275,-443.0,0.0002209,2]
[404747759,1770507044287,-204.3298222,0.00022096,2]
[404747760,1770507044296,-443.0,0.00022118,2]
[404747761,1770507044305,-445.0,0.00022202,2]
[404747762,1770507044314,-1823.33457415,0.00022223,2]
[404747763,1770507044323,-445.0,0.00022226,2]
[404747764,1770507044332,-445.0,0.0002225,2]
[404747765,1770507044341,-443.0,0.00022268,2]
[404747766,1770507044350,-445.0,0.00022376,2]
[404747767,1770507044360,-3174.53686387,0.00022458,2]
[404747768,1770507044369,-269.11351765,0.0002246,2]
[404747769,1770507044378,-340.35210988,0.0002246,2]
[404747770,1770507044387,-500.0,0.0002246,2]
[404747771,1770507044396,-4027.6,0.00022466,2]
[404747772,1770507044405,-155.0,0.00022572,2]
[404747773,1770507044415,-443.0,0.00022994,2]
[404747774,1770507044424,-160.0,0.00023,2]
[404747775,1770507044433,-1000.0,0.00023008,2]
[404747776,1770507044443,-445.0,0.00023082,2]
[404747777,1770507044453,-2000.0,0.000234,2]
[404747778,1770507044461,-443.0,0.00023437,2]
[404747779,1770507044471,-443.0,0.00023474,2]
[404747780,1770507044480,-443.0,0.00023474,2]
[404747781,1770507044489,-501.58240503,0.00023556,2]
[404747782,1770507044498,-443.0,0.00023577,2]
[404747783,1770507044507,-443.0,0.00023588,2]
[404747784,1770507044517,-500.0,0.00023599,2]
[404747785,1770507044526,-500.0,0.00023599,2]
[404747786,1770507044536,-500.0,0.00023599,2]
[404747787,1770507044545,-443.0,0.0002362,2]
[404747788,1770507044554,-443.0,0.00023794,2]
[404747789,1770507044563,-443.0,0.00023857,2]
[404747790,1770507044572,-443.0,0.0002386,2]
[404747791,1770507044581,-168.0,0.000239,2]
[404747792,1770507044591,-168.0,0.00023987,2]
[404747793,1770507044600,-443.0,0.0002403,2]
[404747794,1770507044610,-443.0,0.00024046,2]
[404747795,1770507044619,-382.85,0.000241,7]
[404747796,1770507044628,-1000.0,0.00024658,2]
[404747797,1770507044638,-151.0,0.00024658,2]
[404747798,1770507044647,-151.0,0.00024658,2]
[404747799,1770507044656,-151.0,0.00024658,2]
[404747800,1770507044666,-151.0,0.00024658,2]
[404747801,1770507044675,-151.0,0.00024658,2]
[404747802,1770507044684,-151.0,0.00024658,2]
[404747803,1770507044693,-2000.0,0.000249,2]
[404747804,1770507044703,-312.94399393,0.00025546,2]
[404747805,1770507044712,-1823.33457415,0.00025865,2]
[404747806,1770507044721,-3174.53686387,0.00026061,2]
[404747807,1770507044731,-204.3298222,0.00026485,2]
[404747808,1770507044740,-3687.57,0.00027123,2]
[404747809,1770507044749,-494.12403514,0.0002737,2]
[404747810,1770507044759,-290.66119714,0.0002737,2]
[404747811,1770507044768,-300.0,0.00027397,2]
[404747812,1770507044777,-1000.0,0.00027397,20]
[404747813,1770507044787,-151.0,0.00027397,2]
[404747814,1770507044795,-151.0,0.00027397,2]
[404747815,1770507044808,-151.0,0.00027397,2]
[404747816,1770507044817,-151.0,0.00027397,2]
[404747817,1770507044827,-151.0,0.00027397,2]
[404747818,1770507044836,-151.0,0.00027397,2]
[404747819,1770507044846,-157.237346,0.00027397,2]
[404747820,1770507044856,-157.237346,0.00027397,2]
[404747821,1770507044866,-157.237346,0.00027397,2]
[404747822,1770507044875,-157.237346,0.00027397,2]
[404747823,1770507044885,-157.237346,0.00027397,2]
[404747824,1770507044895,-157.237346,0.00027397,2]
[404747825,1770507044904,-157.237346,0.00027397,2]
[404747826,1770507044914,-157.237346,0.00027397,2]
[404747827,1770507044923,-157.237346,0.00027397,2]
[404747828,1770507044933,-157.237346,0.00027397,2]
[404747829,1770507044942,-157.237346,0.00027397,2]
[404747830,1770507044952,-157.237346,0.00027397,2]
[404747831,1770507044961,-157.237346,0.00027397,2]
[404747832,1770507044970,-157.237346,0.00027397,2]
[404747833,1770507044980,-157.237346,0.00027397,2]
[404747834,1770507044989,-157.237346,0.00027397,2]
[404747835,1770507044999,-157.237346,0.00027397,2]
[404747836,1770507045009,-157.237346,0.00027397,2]
[404747837,1770507045019,-157.237346,0.00027397,2]
[404747838,1770507045028,-157.237354,0.00027397,2]
[404747839,1770507045038,-151.0,0.00027397,2]
[404747840,1770507045048,-151.0,0.00027397,2]
[404747841,1770507045057,-251.93847808,0.00027845,2]
[404747843,1770507045066,-160.0,0.00028,3]
[404747845,1770507045076,-182.21317059,0.00028282,2]
[404747846,1770507045086,-382.85,0.000284,7]
[404747847,1770507045095,-20971.66,0.00029,14]
[404747848,1770507045105,-1823.33457415,0.00029507,2]
[404747849,1770507045114,-3174.53686387,0.00029663,2]
[404747850,1770507045123,-500.0,0.00029702,2]
[404747851,1770507045132,-217.27634127,0.00030136,14]
[404747852,1770507045142,-699.223126,0.00030137,7]
[404747853,1770507045151,-699.223126,0.00030137,7]
[404747854,1770507045161,-699.223126,0.00030137,7]
[404747855,1770507045171,-699.223126,0.00030137,7]
[404747856,1770507045180,-699.223126,0.00030137,7]